fUST/lending_fUST_20250404
["ID","MTS","AMOUNT","RATE_DAILY","PERIOD"]
[357128467,1743772252644,-500.0,0.00015342,2]
[357128468,1743772252654,-2324.27,0.00015342,2]
[357128469,1743772252664,-523.57,0.00015342,2]
[357128470,1743772252674,-500.0,0.00015342,2]
[357128471,1743772252685,-500.0,0.00015342,2]
[357128472,1743772252695,-500.0,0.00015342,2]
[357128473,1743772252705,-216.07,0.00015342,2]
[357128474,1743772252715,-500.0,0.00015342,2]
[357128475,1743772252725,-1204.14,0.00015342,2]
[357128476,1743772252734,-898.89,0.00015342,2]
[357128477,1743772252747,-886.78,0.00015342,2]
[357128478,1743772252757,-4775.01,0.00015342,2]
[357128479,1743772252766,-500.0,0.00015342,2]
[357128480,1743772252776,-500.0,0.00015342,2]
[357128481,1743772252786,-500.0,0.00015342,2]
[357128482,1743772252795,-530.62,0.00015342,2]
[357128483,1743772252804,-636.91,0.00015342,2]
[357128484,1743772252814,-2116.36,0.00015342,2]
[357128485,1743772252824,-210.00771476,0.00015554,2]
[357128486,1743772252834,-501.14496376,0.00015616,2]
[357128487,1743772252843,-500.0,0.00015616,2]
[357128488,1743772252853,-500.0,0.00015616,2]
[357128489,1743772252863,-500.0,0.00015616,2]
[357128490,1743772252872,-505.28,0.00015616,2]
[357128491,1743772252882,-500.0,0.00015616,2]
[357128492,1743772252892,-500.0,0.00015616,2]
[357128493,1743772252902,-500.0,0.00015616,2]
[357128494,1743772252911,-903.65,0.00015616,2]
[357128495,1743772252921,-500.0,0.00015616,2]
[357128496,1743772252932,-2157.92,0.00015616,2]
[357128497,1743772252942,-704.26,0.00015616,2]
[357128498,1743772252952,-500.0,0.00015616,2]
[357128499,1743772252962,-1456.99,0.00015616,2]
[357128500,1743772252971,-500.0,0.00015616,2]
[357128501,1743772252981,-500.0,0.00015616,2]
[357128502,1743772252991,-500.0,0.00015616,2]
[357128503,1743772253001,-500.0,0.00015616,2]
[357128504,1743772253011,-2324.27,0.00015616,2]
[357128505,1743772253020,-523.57,0.00015616,2]
[357128506,1743772253030,-500.0,0.00015616,2]
[357128507,1743772253039,-400.8,0.00015616,2]
[357128508,1743772253049,-500.0,0.00015616,2]
[357128509,1743772253059,-500.0,0.00015616,2]
[357128510,1743772253068,-1204.14,0.00015616,2]
[357128511,1743772253078,-898.89,0.00015616,2]
[357128512,1743772253087,-886.78,0.00015616,2]
[357128513,1743772253097,-4775.01,0.00015616,2]
[357128514,1743772253106,-500.0,0.00015616,2]
[357128515,1743772253116,-500.0,0.00015616,2]
[357128516,1743772253126,-470.58,0.00015616,2]
[357128517,1743772253136,-530.62,0.00015616,2]
[357128518,1743772253146,-636.91,0.00015616,2]
[357128519,1743772253155,-2116.36,0.00015616,2]
[357128520,1743772253165,-151.0,0.000157,2]
[357128521,1743772253175,-174.68733183,0.0001579,2]
[357128522,1743772253185,-7657.84968971,0.00015831,2]
[357128523,1743772253195,-500.0,0.0001589,2]
[357128524,1743772253204,-500.0,0.0001589,2]
[357128525,1743772253214,-500.0,0.0001589,2]
[357128526,1743772253223,-505.28,0.0001589,2]
[357128527,1743772253233,-500.0,0.0001589,2]
[357128528,1743772253243,-500.0,0.0001589,2]
[357128529,1743772253253,-270.5426615,0.0001589,2]
[357128530,1743772253264,-903.65,0.0001589,2]
[357128531,1743772253273,-500.0,0.0001589,2]
[357128532,1743772253283,-2157.92,0.0001589,2]
[357128533,1743772253293,-704.26,0.0001589,2]
[357128534,1743772253303,-500.0,0.0001589,2]
[357128535,1743772253313,-1456.99,0.0001589,2]
[357128536,1743772253323,-500.0,0.0001589,2]
[357128537,1743772253334,-500.0,0.0001589,2]
[357128538,1743772253343,-500.0,0.0001589,2]
[357128539,1743772253354,-500.0,0.0001589,2]
[357128540,1743772253367,-2324.27,0.0001589,2]
[357128541,1743772253377,-523.57,0.0001589,2]
[357128542,1743772253479,-500.0,0.0001589,2]
[357128543,1743772253489,-585.36,0.0001589,2]
[357128544,1743772253499,-500.0,0.0001589,2]
[357128545,1743772253508,-1204.14,0.0001589,2]
[357128546,1743772253517,-898.89,0.0001589,2]
[357128547,1743772253526,-886.78,0.0001589,2]
[357128548,1743772253536,-4775.01,0.0001589,2]
[357128549,1743772253545,-500.0,0.0001589,2]
[357128550,1743772253555,-500.0,0.0001589,2]
[357128551,1743772253564,-530.62,0.0001589,2]
[357128552,1743772253574,-636.91,0.0001589,2]
[357128553,1743772253583,-2116.36,0.0001589,2]
[357128554,1743772253592,-304.23368038,0.00016164,2]
[357128555,1743772253602,-462.25,0.00016164,2]
[357128556,1743772253611,-500.0,0.00016164,2]
[357128557,1743772253621,-505.28,0.00016164,2]
[357128558,1743772253631,-500.0,0.00016164,2]
[357128559,1743772253640,-500.0,0.00016164,2]
[357128560,1743772253649,-903.65,0.00016164,2]
[357128561,1743772253659,-500.0,0.00016164,2]
[357128562,1743772253669,-2157.92,0.00016164,2]
[357128563,1743772253679,-704.26,0.00016164,2]
[357128564,1743772253690,-158.38,0.00016164,2]
[357128565,1743772253700,-1456.99,0.00016164,2]
[357128566,1743772253710,-500.0,0.00016164,2]
[357128567,1743772253719,-238.31,0.00016164,2]
[357128568,1743772253729,-500.0,0.00016164,2]
[357128569,1743772253739,-500.0,0.00016164,2]
[357128570,1743772253749,-2324.27,0.00016164,2]
[357128571,1743772253758,-523.57,0.00016164,2]
[357128572,1743772253768,-500.0,0.00016164,2]
[357128573,1743772253777,-500.0,0.00016164,2]
[357128574,1743772253787,-1204.14,0.00016164,2]
[357128575,1743772253796,-898.89,0.00016164,2]
[357128576,1743772253805,-886.78,0.00016164,2]
[357128577,1743772253815,-4775.01,0.00016164,2]
[357128578,1743772253823,-500.0,0.00016164,2]
[357128579,1743772253833,-500.0,0.00016164,2]
[357128580,1743772253842,-530.62,0.00016164,2]
[357128581,1743772253851,-636.91,0.00016164,2]
[357128582,1743772253861,-2116.36,0.00016164,2]
[357128583,1743772253870,-500.0,0.00016438,2]
[357128584,1743772253879,-500.0,0.00016438,2]
[357128585,1743772253889,-500.0,0.00016438,2]
[357128586,1743772253898,-502.53413193,0.00016438,2]
[357128587,1743772253907,-200.0,0.00016438,2]
[357128588,1743772253916,-200.0,0.00016438,2]
[357128589,1743772253925,-369.25,0.00016438,2]
[357128590,1743772253935,-505.28,0.00016438,2]
[357128591,1743772253946,-500.0,0.00016438,2]
[357128592,1743772253956,-500.0,0.00016438,2]
[357128593,1743772253965,-903.65,0.00016438,2]
[357128594,1743772253974,-500.0,0.00016438,2]
[357128595,1743772253984,-2157.92,0.00016438,2]
[357128596,1743772253993,-704.26,0.00016438,2]
[357128597,1743772254003,-1456.99,0.00016438,2]
[357128598,1743772254012,-500.0,0.00016438,2]
[357128599,1743772254021,-500.0,0.00016438,2]
[357128600,1743772254031,-597.52,0.00016438,2]
[357128601,1743772254040,-2324.27,0.00016438,2]
[357128602,1743772254050,-523.57,0.00016438,2]
[357128603,1743772254059,-500.0,0.00016438,2]
[357128604,1743772254068,-500.0,0.00016438,2]
[357128605,1743772254077,-1204.14,0.00016438,2]
[357128606,1743772254087,-898.89,0.00016438,2]
[357128607,1743772254096,-886.78,0.00016438,2]
[357128608,1743772254105,-4775.01,0.00016438,2]
[357128609,1743772254114,-500.0,0.00016438,2]
[357128610,1743772254123,-500.0,0.00016438,2]
[357128611,1743772254132,-530.62,0.00016438,2]
[357128612,1743772254141,-636.91,0.00016438,2]
[357128613,1743772254151,-2116.36,0.00016438,2]
[357128614,1743772254160,-151.0,0.00016438,2]
[357128615,1743772254170,-151.0,0.00016438,2]
[357128616,1743772254179,-197.254479,0.00016438,2]
[357128617,1743772254188,-151.0,0.00016438,2]
[357128618,1743772254198,-151.0,0.00016438,2]
[357128619,1743772254208,-151.0,0.00016438,2]
[357128620,1743772254217,-823.0,0.0001646,2]
[357128621,1743772254227,-471.30068662,0.00016638,2]
[357128622,1743772254236,-154.3092642,0.00016664,2]
[357128623,1743772254246,-153.0,0.00016664,2]
[357128624,1743772254256,-306.0,0.00016664,2]
[357128625,1743772254266,-505.28,0.00016712,2]
[357128626,1743772254276,-500.0,0.00016712,2]
[357128627,1743772254286,-500.0,0.00016712,2]
[357128628,1743772254295,-903.65,0.00016712,2]
[357128629,1743772254305,-500.0,0.00016712,2]
[357128630,1743772254314,-2157.92,0.00016712,2]
[357128631,1743772254324,-704.26,0.00016712,2]
[357128632,1743772254334,-1456.99,0.00016712,2]
[357128633,1743772254344,-500.0,0.00016712,2]
[357128634,1743772254354,-500.0,0.00016712,2]
[357128635,1743772254368,-2324.27,0.00016712,2]
[357128636,1743772254378,-523.57,0.00016712,2]
[357128637,1743772254387,-500.0,0.00016712,2]
[357128638,1743772254398,-500.0,0.00016712,2]
[357128639,1743772254408,-1204.14,0.00016712,2]
[357128640,1743772254418,-898.89,0.00016712,2]
[357128641,1743772254427,-886.78,0.00016712,2]
[357128642,1743772254439,-4775.01,0.00016712,2]
[357128643,1743772254448,-500.0,0.00016712,2]
[357128644,1743772254457,-500.0,0.00016712,2]
[357128645,1743772254467,-530.62,0.00016712,2]
[357128646,1743772254477,-636.91,0.00016712,2]
[357128647,1743772254487,-2116.36,0.00016712,2]
[357128648,1743772254497,-7657.84968971,0.00016797,2]
[357128649,1743772254506,-151.0,0.00016946,2]
[357128650,1743772254516,-151.0,0.00016946,2]
[357128651,1743772254526,-151.0,0.00016946,2]
[357128652,1743772254535,-151.0,0.00016946,2]
[357128653,1743772254546,-151.0,0.00016946,2]
[357128654,1743772254555,-151.0,0.00016946,2]
[357128655,1743772254565,-151.0,0.00016946,2]
[357128656,1743772254575,-151.0,0.00016946,2]
[357128657,1743772254585,-151.0,0.00016946,2]
[357128658,1743772254594,-151.0,0.00016946,2]
[357128659,1743772254603,-151.0,0.00016946,2]
[357128660,1743772254613,-151.0,0.00016946,2]
[357128661,1743772254622,-151.0,0.00016946,2]
[357128662,1743772254632,-151.0,0.00016946,2]
[357128663,1743772254641,-151.0,0.00016946,2]
[357128664,1743772254651,-151.0,0.00016946,2]
[357128665,1743772254660,-151.0,0.00016946,2]
[357128666,1743772254669,-151.0,0.00016946,2]
[357128667,1743772254678,-151.0,0.00016946,2]
[357128668,1743772254688,-151.0,0.00016946,2]
[357128669,1743772254697,-302.0,0.00016946,2]
[357128670,1743772254707,-200.0,0.00016946,2]
[357128671,1743772254716,-12520.15255516,0.00016983,2]
[357128672,1743772254725,-160.0,0.00016983,2]
[357128673,1743772254735,-781.25,0.00016983,2]
[357128674,1743772254745,-160.0,0.00016983,2]
[357128675,1743772254754,-419.12848707,0.00016983,2]
[357128676,1743772254763,-505.28,0.00016986,2]
[357128677,1743772254773,-500.0,0.00016986,2]
[357128678,1743772254783,-500.0,0.00016986,2]
[357128679,1743772254792,-903.65,0.00016986,2]
[357128680,1743772254801,-500.0,0.00016986,2]
[357128681,1743772254810,-2157.92,0.00016986,2]
[357128682,1743772254819,-704.26,0.00016986,2]
[357128683,1743772254829,-1456.99,0.00016986,2]
[357128684,1743772254838,-538.69,0.00016986,2]
[357128685,1743772254847,-500.0,0.00016986,2]
[357128686,1743772254856,-2324.27,0.00016986,2]
[357128687,1743772254866,-523.57,0.00016986,2]
[357128688,1743772254875,-500.0,0.00016986,2]
[357128689,1743772254884,-500.0,0.00016986,2]
[357128690,1743772254894,-1204.14,0.00016986,2]
[357128691,1743772254903,-898.89,0.00016986,2]
[357128692,1743772254912,-886.78,0.00016986,2]
[357128693,1743772254922,-4775.01,0.00016986,2]
[357128694,1743772254931,-500.0,0.00016986,2]
[357128695,1743772254941,-500.0,0.00016986,2]
[357128696,1743772254950,-530.62,0.00016986,2]
[357128697,1743772254959,-636.91,0.00016986,2]
[357128698,1743772254968,-1708.50960196,0.00017004,2]
[357128699,1743772254978,-250.0,0.00017059,2]
[357128700,1743772254987,-165.842,0.00017059,2]
[357128701,1743772254996,-192.618,0.00017059,2]
[357128702,1743772255005,-250.0,0.00017059,2]
[357128703,1743772255014,-196.873,0.00017109,2]
[357128704,1743772255023,-280.818,0.00017109,2]
[357128705,1743772255032,-152.921,0.00017109,2]
[357128706,1743772255041,-542.0,0.00017109,2]
[357128707,1743772255050,-2256.0,0.00017109,2]
[357128708,1743772255059,-1551.0,0.00017109,2]
[357128709,1743772255068,-401.0,0.00017109,2]
[357128710,1743772255078,-505.28,0.0001726,2]
[357128711,1743772255087,-500.0,0.0001726,2]
[357128712,1743772255097,-500.0,0.0001726,2]
[357128713,1743772255106,-903.65,0.0001726,2]
[357128714,1743772255115,-337.78608868,0.0001726,2]
[357128715,1743772255125,-2157.92,0.0001726,2]
[357128716,1743772255134,-704.26,0.0001726,2]
[357128717,1743772255143,-1456.99,0.0001726,2]
[357128718,1743772255152,-500.0,0.0001726,2]
[357128719,1743772255162,-2324.27,0.0001726,2]
[357128720,1743772255171,-523.57,0.0001726,2]
[357128721,1743772255181,-500.0,0.0001726,2]
[357128722,1743772255190,-500.0,0.0001726,2]
[357128723,1743772255201,-1204.14,0.0001726,2]
[357128724,1743772255210,-898.89,0.0001726,2]
[357128725,1743772255219,-886.78,0.0001726,2]
[357128726,1743772255229,-4775.01,0.0001726,2]
[357128727,1743772255238,-500.0,0.0001726,2]
[357128728,1743772255247,-500.0,0.0001726,2]
[357128729,1743772255257,-530.62,0.0001726,2]
[357128730,1743772255266,-636.91,0.0001726,2]
[357128731,1743772255275,-151.0,0.00017494,2]
[357128732,1743772255285,-500.0,0.00017514,2]
[357128733,1743772255294,-505.28,0.00017534,2]
[357128734,1743772255303,-500.0,0.00017534,2]
[357128735,1743772255313,-500.0,0.00017534,2]
[357128736,1743772255322,-903.65,0.00017534,2]
[357128737,1743772255332,-2157.92,0.00017534,2]
[357128738,1743772255341,-704.26,0.00017534,2]
[357128739,1743772255351,-1456.99,0.00017534,2]
[357128740,1743772255363,-252.01457944,0.00017534,2]
[357128741,1743772255373,-2324.27,0.00017534,2]
[357128742,1743772255383,-523.57,0.00017534,2]
[357128743,1743772255393,-500.0,0.00017534,2]
[357128744,1743772255403,-500.0,0.00017534,2]
[357128745,1743772255413,-1204.14,0.00017534,2]
[357128746,1743772255422,-898.89,0.00017534,2]
[357128747,1743772255432,-886.78,0.00017534,2]
[357128748,1743772255442,-4775.01,0.00017534,2]
[357128749,1743772255451,-500.0,0.00017534,2]
[357128750,1743772255460,-500.0,0.00017534,2]
[357128751,1743772255470,-530.62,0.00017534,2]
[357128752,1743772255479,-636.91,0.00017534,2]
[357128753,1743772255488,-7657.84968971,0.00017762,2]
[357128754,1743772255497,-505.28,0.00017808,2]
[357128755,1743772255506,-500.0,0.00017808,2]
[357128756,1743772255516,-500.0,0.00017808,2]
[357128757,1743772255526,-903.65,0.00017808,2]
[357128758,1743772255535,-2157.92,0.00017808,2]
[357128759,1743772255544,-704.26,0.00017808,2]
[357128760,1743772255554,-1456.99,0.00017808,2]
[357128761,1743772255563,-2324.27,0.00017808,2]
[357128762,1743772255572,-523.57,0.00017808,2]
[357128763,1743772255582,-500.0,0.00017808,2]
[357128764,1743772255592,-500.0,0.00017808,2]
[357128765,1743772255601,-1204.14,0.00017808,2]
[357128766,1743772255611,-898.89,0.00017808,2]
[357128767,1743772255620,-886.78,0.00017808,2]
[357128768,1743772255630,-4775.01,0.00017808,2]
[357128769,1743772255639,-500.0,0.00017808,2]
[357128770,1743772255648,-500.0,0.00017808,2]
[357128771,1743772255658,-530.62,0.00017808,2]
[357128772,1743772255667,-636.91,0.00017808,2]
[357128773,1743772255676,-1000.0,0.00017808,7]
[357128774,1743772255686,-1000.0,0.00017808,7]
[357128775,1743772255695,-1000.0,0.00017808,7]
[357128776,1743772255705,-1000.0,0.00017808,7]
[357128777,1743772255714,-1000.0,0.00017808,7]
[357128778,1743772255723,-1000.0,0.00017808,7]
[357128779,1743772255732,-1000.0,0.00017808,7]
[357128780,1743772255742,-1000.0,0.00017808,7]
[357128781,1743772255751,-1000.0,0.00017808,7]
[357128782,1743772255760,-1000.0,0.00017808,7]
[357128783,1743772255769,-1000.0,0.00017808,7]
[357128784,1743772255778,-1000.0,0.00017808,7]
[357128785,1743772255788,-1000.0,0.00017808,7]
[357128786,1743772255797,-1000.0,0.00017808,7]
[357128787,1743772255806,-1000.0,0.00017808,7]
[357128788,1743772255816,-1000.0,0.00017808,7]
[357128789,1743772255825,-1000.0,0.00017808,7]
[357128790,1743772255834,-1000.0,0.00017808,7]
[357128791,1743772255843,-1000.0,0.00017808,7]
[357128792,1743772255987,-1000.0,0.00017808,7]
[357128793,1743772256011,-1000.0,0.00017808,7]
[357128794,1743772256022,-1000.0,0.00017808,7]
[357128795,1743772256032,-1000.0,0.00017808,7]
[357128796,1743772256042,-1000.0,0.00017808,7]
[357128797,1743772256052,-1000.0,0.00017808,7]
[357128798,1743772256061,-1000.0,0.00017808,7]
[357128799,1743772256071,-1000.0,0.00017808,7]
[357128800,1743772256080,-1000.0,0.00017808,7]
[357128801,1743772256090,-1000.0,0.00017808,7]
[357128802,1743772256099,-1000.0,0.00017808,7]
[357128803,1743772256108,-1000.0,0.00017808,7]
[357128804,1743772256118,-151.0,0.00018042,2]
[357128805,1743772256128,-1152.0,0.00018061,2]
[357128806,1743772256137,-505.28,0.00018082,2]
[357128807,1743772256147,-500.0,0.00018082,2]
[357128808,1743772256157,-500.0,0.00018082,2]
[357128809,1743772256166,-903.65,0.00018082,2]
[357128810,1743772256176,-2157.92,0.00018082,2]
[357128811,1743772256190,-704.26,0.00018082,2]
[357128812,1743772256199,-1456.99,0.00018082,2]
[357128813,1743772256209,-2324.27,0.00018082,2]
[357128814,1743772256219,-523.57,0.00018082,2]
[357128815,1743772256229,-500.0,0.00018082,2]
[357128816,1743772256238,-500.0,0.00018082,2]
[357128817,1743772256247,-1204.14,0.00018082,2]
[357128818,1743772256257,-898.89,0.00018082,2]
[357128819,1743772256266,-886.78,0.00018082,2]
[357128820,1743772256276,-4775.01,0.00018082,2]
[357128821,1743772256285,-500.0,0.00018082,2]
[357128822,1743772256295,-500.0,0.00018082,2]
[357128823,1743772256304,-530.62,0.00018082,2]
[357128824,1743772256314,-636.91,0.00018082,2]
[357128825,1743772256323,-501.30901151,0.00018152,2]
[357128826,1743772256332,-500.0,0.00018152,2]
[357128827,1743772256342,-500.0,0.00018152,2]
[357128828,1743772256352,-488.91576977,0.00018152,2]
[357128829,1743772256367,-500.0,0.00018152,2]
[357128830,1743772256376,-500.0,0.00018152,2]
[357128831,1743772256385,-500.0,0.00018152,2]
[357128832,1743772256395,-500.0,0.00018152,2]
[357128833,1743772256406,-500.4449197,0.00018152,2]
[357128834,1743772256416,-500.0,0.00018152,2]
[357128835,1743772256425,-500.0,0.00018152,2]
[357128836,1743772256436,-500.0,0.00018152,2]
[357128837,1743772256446,-500.0,0.00018152,2]
[357128838,1743772256455,-500.0,0.00018152,2]
[357128839,1743772256465,-500.0,0.00018152,2]
[357128840,1743772256474,-503.46542925,0.00018152,2]
[357128841,1743772256487,-500.0,0.00018224,2]
[357128842,1743772256496,-284.75716536,0.00018224,2]
[357128843,1743772256505,-500.0,0.00018233,2]
[357128844,1743772256515,-500.0,0.00018233,2]
[357128845,1743772256524,-500.0,0.0001824,2]
[357128846,1743772256533,-281.57643986,0.00018287,2]
[357128847,1743772256543,-500.0,0.00018291,2]
[357128848,1743772256552,-500.0,0.00018291,2]
[357128849,1743772256562,-500.0,0.00018291,2]
[357128850,1743772256571,-207.4,0.00018315,2]
[357128851,1743772256580,-500.0,0.00018319,2]
[357128852,1743772256590,-500.0,0.00018319,2]
[357128853,1743772256599,-500.0,0.00018319,2]
[357128854,1743772256609,-500.0,0.00018319,2]
[357128855,1743772256618,-500.0,0.00018319,2]
[357128856,1743772256627,-284.72481976,0.00018319,2]
[357128857,1743772256638,-500.0,0.00018324,2]
[357128858,1743772256648,-505.28,0.00018356,2]
[357128859,1743772256657,-500.0,0.00018356,2]
[357128860,1743772256667,-541.9579842,0.00018356,2]
[357128861,1743772256678,-903.65,0.00018356,2]
[357128862,1743772256692,-2157.92,0.00018356,2]
[357128863,1743772256702,-704.26,0.00018356,2]
[357128864,1743772256712,-1456.99,0.00018356,2]
[357128865,1743772256722,-2324.27,0.00018356,2]
[357128866,1743772256733,-523.57,0.00018356,2]
[357128867,1743772256743,-500.0,0.00018356,2]
[357128868,1743772256753,-500.0,0.00018356,2]
[357128869,1743772256763,-1204.14,0.00018356,2]
[357128870,1743772256773,-898.89,0.00018356,2]
[357128871,1743772256784,-886.78,0.00018356,2]
[357128872,1743772256795,-4775.01,0.00018356,2]
[357128873,1743772256806,-500.0,0.00018356,2]
[357128874,1743772256816,-500.0,0.00018356,2]
[357128875,1743772256826,-530.62,0.00018356,2]
[357128876,1743772256836,-636.91,0.00018356,2]
[357128877,1743772256846,-500.0,0.00018436,2]
[357128878,1743772256856,-154.64320946,0.0001859,2]
[357128879,1743772256866,-5000.0,0.00018602,2]
[357128880,1743772256875,-505.28,0.0001863,2]
[357128881,1743772256885,-500.0,0.0001863,2]
[357128882,1743772256895,-903.65,0.0001863,2]
[357128883,1743772256905,-2157.92,0.0001863,2]
[357128884,1743772256914,-704.26,0.0001863,2]
[357128885,1743772256924,-1456.99,0.0001863,2]
[357128886,1743772256937,-2324.27,0.0001863,2]
[357128887,1743772256949,-523.57,0.0001863,2]
[357128888,1743772256958,-500.0,0.0001863,2]
[357128889,1743772256968,-500.0,0.0001863,2]
[357128890,1743772256978,-1204.14,0.0001863,2]
[357128891,1743772256988,-898.89,0.0001863,2]
[357128892,1743772256999,-886.78,0.0001863,2]
[357128893,1743772257009,-4775.01,0.0001863,2]
[357128894,1743772257020,-210.95857362,0.0001863,2]
[357128895,1743772257030,-500.0,0.0001863,2]
[357128896,1743772257040,-530.62,0.0001863,2]
[357128897,1743772257050,-636.91,0.0001863,2]
[357128898,1743772257059,-7657.84968971,0.00018728,2]
[357128899,1743772257069,-505.28,0.00018904,2]
[357128900,1743772257079,-500.0,0.00018904,2]
[357128901,1743772257090,-903.65,0.00018904,2]
[357128902,1743772257102,-2157.92,0.00018904,2]
[357128903,1743772257113,-704.26,0.00018904,2]
[357128904,1743772257123,-1456.99,0.00018904,2]
[357128905,1743772257133,-2324.27,0.00018904,2]
[357128906,1743772257143,-523.57,0.00018904,2]
[357128907,1743772257154,-562.2,0.00018904,2]
[357128908,1743772257164,-500.0,0.00018904,2]
[357128909,1743772257174,-1204.14,0.00018904,2]
[357128910,1743772257190,-898.89,0.00018904,2]
[357128911,1743772257201,-886.78,0.00018904,2]
[357128912,1743772257211,-4775.01,0.00018904,2]
[357128913,1743772257221,-500.0,0.00018904,2]
[357128914,1743772257231,-530.62,0.00018904,2]
[357128915,1743772257242,-636.91,0.00018904,2]
[357128916,1743772257251,-154625.87789174,0.00019,2]
[357128917,1743772257261,-162.20104245,0.00019152,2]
[357128918,1743772257271,-500.0,0.00019152,2]
[357128919,1743772257281,-1000.0,0.00019152,2]
[357128920,1743772257291,-1000.0,0.00019152,2]
[357128921,1743772257301,-1000.0,0.00019152,2]
[357128922,1743772257311,-603.521637,0.00019152,2]
[357128923,1743772257321,-1000.0,0.00019152,2]
[357128924,1743772257330,-1000.0,0.00019152,2]
[357128925,1743772257340,-500.0,0.00019152,2]
[357128926,1743772257349,-500.0,0.00019152,2]
[357128927,1743772257359,-1000.0,0.00019152,2]
[357128928,1743772257371,-1000.0,0.00019152,2]
[357128929,1743772257380,-1012.95706276,0.00019152,2]
[357128930,1743772257389,-1000.0,0.00019152,2]
[357128931,1743772257399,-505.28,0.00019178,2]
[357128932,1743772257410,-500.0,0.00019178,2]
[357128933,1743772257420,-903.65,0.00019178,2]
[357128934,1743772257429,-2157.92,0.00019178,2]
[357128935,1743772257443,-704.26,0.00019178,2]
[357128936,1743772257453,-1456.99,0.00019178,2]
[357128937,1743772257463,-2324.27,0.00019178,2]
[357128938,1743772257472,-523.57,0.00019178,2]
[357128939,1743772257482,-1204.14,0.00019178,2]
[357128940,1743772257492,-898.89,0.00019178,2]
[357128941,1743772257502,-886.78,0.00019178,2]
[357128942,1743772257512,-4775.01,0.00019178,2]
[357128943,1743772257522,-500.0,0.00019178,2]
[357128944,1743772257531,-530.62,0.00019178,2]
[357128945,1743772257541,-636.91,0.00019178,2]
[357128946,1743772257551,-151.0,0.00019178,2]
[357128947,1743772257560,-151.0,0.00019178,2]
[357128948,1743772257569,-151.0,0.00019178,2]
[357128949,1743772257579,-151.0,0.00019178,2]
[357128950,1743772257588,-151.0,0.00019178,2]
[357128951,1743772257598,-151.0,0.00019178,2]
[357128952,1743772257607,-151.0,0.00019178,2]
[357128953,1743772257616,-238.422669,0.00019178,2]
[357128954,1743772257626,-151.0,0.00019178,2]
[357128955,1743772257636,-151.0,0.00019178,2]
[357128956,1743772257646,-151.0,0.00019178,2]
[357128957,1743772257655,-151.0,0.00019178,2]
[357128958,1743772257665,-258.489567,0.00019178,2]
[357128959,1743772257674,-200.22,0.00019233,2]
[357128960,1743772257686,-17843.63444008,0.00019329,2]
[357128961,1743772257696,-500.0,0.00019357,2]
[357128962,1743772257706,-505.28,0.00019452,2]
[357128963,1743772257716,-500.0,0.00019452,2]
[357128964,1743772257726,-903.65,0.00019452,2]
[357128965,1743772257736,-2157.92,0.00019452,2]
[357128966,1743772257746,-704.26,0.00019452,2]